Cogmind - Beta 11 X8 @@@ ROGUE MODE // 2021.12.15 @ 04:31:17 Player: thingamajigger Result: Self-destructed Performance ------------- Evolutions (3) 1500 Regions Visited (10) 2000 Robots Destroyed (104) 520 Value Destroyed (3538) 3538 Prototype IDs (33) 660 Alien Tech Used (0) 0 Bonus (2679) 2679 TOTAL SCORE: 10897 Bonus ------- High Alert Combat Kills 51 Follower Combat Kills 177 Aligned with FarCom 300 Met Imprinter 300 Destroyed Z-Imprinter 1000 Triggered Deep Caves Wall 500 Exposed GOLEM Chamber 500 Friendly Fire -149 Cogmind --------- Core Integrity 206/700 Matter 2/300 Energy 290/290 System Corruption 3% Temperature Cool (0) Movement Rolling (145) Ox3 Location -7/Deep Caves Parts ------- > --- POWER (1) -------- Reinforced Deuterium Engine > --- PROPULSION (4) --- Armored Huge Wheel > --- UTILITY (5) ------ Improved Heat Sink Experimental Heat Sink Huge Storage Unit Advanced Targeting Computer Improved Light Armor Plating > --- WEAPON (3) ------- Minigun Gauss Rifle Gauss Rifle > --- INVENTORY (25) --- Improved Heat Sink Huge Storage Unit Zionite Biocell Superbattery (1500) Weapon Cycler Zionite Weapon Casing Zionite Weapon Casing Zionite Weapon Casing Zionite Heavy Carapace Zionite Heavy Carapace Impact Mace Peak State ------------ > --- POWER ------------ Reinforced Deuterium Engine > --- PROPULSION ------- Armored Treads Armored Treads Armored Treads Medium Treads > --- UTILITY ---------- Improved Heat Sink Experimental Heat Sink Huge Storage Unit Advanced Targeting Computer Zionite Light Carapace > --- WEAPON ----------- Arc Projector Arc Projector Arc Projector > --- INVENTORY -------- Armored Huge Wheel Improved Heat Sink Huge Storage Unit Compact Matter Pod Zionite Heavy Carapace Zionite Heavy Carapace Improved Light Armor Plating Layered Light Armor Plating Relay Coupler [Programmer] Relay Coupler [Programmer] Relay Coupler [Programmer] Supersonic Drone Bay Phasing AFG Lightning Gun Arc Projector Minigun Enhanced Autogun Gauss Rifle Gauss Rifle Heavy Missile Launcher Impact Mace [Rating: 61] Favorites ----------- Power Reinforced Ion Engine Engine Reinforced Ion Engine Propulsion Armored Treads Treads Armored Treads Wheel Armored Wheel Utility Huge Storage Unit Device Weapon Cycler Storage Huge Storage Unit Processor Advanced Targeting Computer Hackware Hacking Suite Protection Improved Light Armor Plating Weapon Enhanced Autogun Energy Gun Arc Projector Ballistic Gun Enhanced Autogun Launcher Heavy Missile Launcher Impact Weapon Impact Mace Slashing Weapon Ripper Build | -11 -10 -10 -10 -9 -8 -7 -7 -7 -7 -7 ------- Run | Scr Mat Min Exi Min Mat Fac Low Low Zio Dee Slots Evolved 6 | . . . . . 4 2 . . . . Power . | . . . . . . . . . . . Propulsion 2 | . . . . . 1 1 . . . . Utility 3 | . . . . . 2 1 . . . . Weapon 1 | . . . . . 1 . . . . . Parts Attached 123 | 7 1 1 . . 41 24 . 2 15 32 Power 4 | 1 . . . . 1 . . . 1 1 Engine 4 | 1 . . . . 1 . . . 1 1 Core . | . . . . . . . . . . . Reactor . | . . . . . . . . . . . Propulsion 24 | 2 . . . . 10 5 . . 4 3 Treads 20 | 2 . . . . 7 5 . . 4 2 Leg . | . . . . . . . . . . . Wheel 4 | . . . . . 3 . . . . 1 Hover . | . . . . . . . . . . . Flight . | . . . . . . . . . . . Utility 33 | 1 1 1 . . 11 7 . 1 4 7 Device 8 | . . 1 . . 2 1 . . 2 2 Storage 6 | 1 1 . . . 2 1 . . 1 . Processor 4 | . . . . . 1 2 . 1 . . Hackware 4 | . . . . . 3 1 . . . . Protection 11 | . . . . . 3 2 . . 1 5 Artifact . | . . . . . . . . . . . Weapon 62 | 3 . . . . 19 12 . 1 6 21 Energy Gun 16 | 2 . . . . 4 3 . . . 7 Energy Cannon . | . . . . . . . . . . . Ballistic Gun 30 | 1 . . . . 12 6 . . 3 8 Ballistic Cannon . | . . . . . . . . . . . Launcher 8 | . . . . . 1 . . 1 2 4 Special Weapon . | . . . . . . . . . . . Impact Weapon 5 | . . . . . . 2 . . 1 2 Slashing Weapon 3 | . . . . . 2 1 . . . . Piercing Weapon . | . . . . . . . . . . . Special Melee Weapon . | . . . . . . . . . . . Unidentified Prototypes 10 | . . . . . 3 3 . . 1 3 Parts Lost 18 | . . . . . 2 . . . . 16 Power . | . . . . . . . . . . . Propulsion 5 | . . . . . . . . . . 5 Utility 2 | . . . . . . . . . . 2 Weapon 11 | . . . . . 2 . . . . 9 Highest Loss Streak 5 | . . . . . 2 . . . . 5 Average Slot Usage (%) 97 | . 93 89 100 100 99 99 100 99 94 93 Engine 8 | . 14 14 14 14 9 7 7 7 6 7 Treads 26 | . 28 28 28 28 19 29 30 30 28 23 Wheel 1 | . . . . . 6 . . . . 1 Device 8 | . . 4 14 14 6 7 7 7 6 12 Storage 8 | . 22 14 14 14 9 7 7 7 6 7 Processor 6 | . . . . . 4 7 7 10 15 9 Hackware 4 | . . . . . 8 6 7 3 . . Protection 5 | . . . . . 6 7 7 7 6 6 Energy Gun 4 | . 14 14 14 14 1 . . . . 12 Ballistic Gun 17 | . 14 14 14 14 22 22 23 20 12 6 Launcher 1 | . . . . . 1 . . 2 1 3 Naked Turns . | . . . . . . . . . . . Heaviest Build 112 | 13 33 30 30 30 64 104 104 108 112 112 Greatest Support 98 | 40 40 40 40 40 60 98 98 98 98 90 Greatest Overweight (x) 27 | 1 . . . . 10 1 1 1 27 3 Average Overweight (x) . | . . . . . 1 . 1 1 . 1 Largest Inventory Capacity 25 | 8 15 15 15 15 20 25 25 25 25 25 Average Capacity 21 | 6 11 15 15 15 15 24 25 25 24 25 Most Carried 25 | 1 3 7 8 9 15 25 24 25 25 25 Average Carried 18 | . 1 5 7 8 14 22 24 24 23 22 Final Capacity 25 | 8 15 15 15 15 20 25 25 25 25 25 Final Carried 25 | 1 3 7 8 9 15 24 24 25 25 13 Class Distribution -------------------- 49% | Gunner 39% | Mutant 5% | Skirmisher 4% | Hacker-Skirmisher Dominant Class ---------------- Mutant | -10/Materials Mutant | -10/Mines Mutant | -10/Exiles Mutant | -9/Mines Skirmisher | -8/Materials Gunner | -7/Factory Gunner | -7/Lower Caves Gunner | -7/Lower Caves Mutant | -7/Zion Gunner | -7/Deep Caves Resources | -11 -10 -10 -10 -9 -8 -7 -7 -7 -7 -7 ----------- Run | Scr Mat Min Exi Min Mat Fac Low Low Zio Dee Matter Collected 3845 | 223 . 121 . . 1026 984 157 96 86 1152 Remotely . | . . . . . . . . . . . Salvage Created 5810 | . . 157 . . 1911 1126 136 143 . 2337 Parts 264 | . . 19 . . 120 68 7 8 . 42 Haulers Intercepted 7 | . . . . . 4 3 . . . . Recyclers Shooed 2 | . . . . . . 2 . . . . Parts Field Recycled . | . . . . . . . . . . . Retrieved Matter . | . . . . . . . . . . . Parts Self-Destructed 18 | . . . . . . . 8 7 3 . Prevented 2 | . . . . . . . 2 . . . Kills | -11 -10 -10 -10 -9 -8 -7 -7 -7 -7 -7 ------- Run | Scr Mat Min Exi Min Mat Fac Low Low Zio Dee Combat Hostiles Destroyed 136 | . . 8 . . 31 18 5 5 . 69 Melee 5 | . . . . . . . . . . 5 Guns 83 | . . 8 . . 31 18 5 2 . 19 AOE 43 | . . . . . . . . 3 . 40 Classes Destroyed 17 | . . 3 . . 8 1 . 1 . 4 Worker 5 | . . . . . 5 . . . . . Builder 2 | . . . . . 2 . . . . . Tunneler 1 | . . 1 . . . . . . . . Hauler 7 | . . . . . 4 3 . . . . Watcher 10 | . . . . . 5 5 . . . . Swarmer 23 | . . 7 . . 6 5 5 . . . Grunt 23 | . . 1 . . 13 5 . 4 . . Brawler 1 | . . . . . 1 . . . . . Duelist 2 | . . . . . 1 1 . . . . Sentry 13 | . . . . . 9 4 . . . . Hunter 1 | . . . . . 1 . . . . . Programmer 3 | . . . . . . 3 . . . . Z-Light 8 | . . . . . . . . . . 8 Thief 1 | . . . . . . . . 1 . . Assembler 1 | . . . . . . . . . . 1 Assembled 46 | . . . . . . . . . . 46 Golem 14 | . . . . . . . . . . 14 Savage 1 | . . . . . . . . . . 1 Best Kill Streak 40 | . . 5 . . 9 5 3 4 . 40 Combat Bots Only 39 | . . 5 . . 6 5 3 4 . 39 Max Kills in Single Turn 9 | . . 2 . . 3 2 2 2 . 9 Gunslinging 1 | . . 1 . . 1 . 1 . . . Exploded 9 | . . . . . . . . 2 . 9 Melee 1 | . . . . . . . . . . 1 Uniques/NPCs Destroyed 1 | . . . . . . . . . . 1 Z-Imprinter (-7/Deep Caves) Combat | -11 -10 -10 -10 -9 -8 -7 -7 -7 -7 -7 -------- Run | Scr Mat Min Exi Min Mat Fac Low Low Zio Dee Damage Taken 6494 | . . 576 . . 764 1526 300 98 . 3230 Core 600 | . . 60 . . 46 163 28 . . 303 Absorbed by Shields . | . . . . . . . . . . . Core Remaining (%) 89 | 100 . . . 76 91 . . . . . Volleys Fired 333 | . . 18 . . 96 67 13 9 . 130 Largest 3 | . . 2 . . 3 3 3 3 . 3 Hottest 165 | . . 60 . . 123 75 75 75 . 165 Shots Fired 904 | . . 36 . . 280 200 39 20 . 329 Gun 876 | . . 36 . . 278 200 39 18 . 305 Cannon . | . . . . . . . . . . . Launcher 28 | . . . . . 2 . . 2 . 24 Special . | . . . . . . . . . . . Kinetic 738 | . . 18 . . 249 200 39 18 . 214 Thermal 42 | . . 18 . . 24 . . . . . Explosive 25 | . . . . . 2 . . 2 . 21 Electromagnetic 99 | . . . . . 5 . . . . 94 Robot Hit Streak 21 | . . 8 . . 17 18 5 7 . 21 Robot Miss Streak 9 | . . 3 . . 9 3 4 3 . 3 Penetration Max 1 | . . . . . . . . . . 1 Secondary Targets 13 | . . 1 . . 3 4 3 . . 2 Max Gunslinging Chain 1 | . . 1 . . 1 1 1 . . 1 Shots Hit Robots 654 | . . 22 . . 181 128 21 13 . 289 Core Hits 394 | . . 12 . . 85 53 6 10 . 228 Critical Kills 5 | . . . . . . . . . . 5 Critical Parts Destroyed 5 | . . . . . 1 . . . . 4 Critical Strikes 10 | . . . . . 1 . . . . 9 Destroy 7 | . . . . . 1 . . . . 6 Smash 3 | . . . . . . . . . . 3 Melee Attacks 83 | . . . . . 5 2 . . 8 68 Impact 77 | . . . . . . 1 . . 8 68 Slashing 6 | . . . . . 5 1 . . . . Piercing . | . . . . . . . . . . . Sneak Attacks . | . . . . . . . . . . . Combat Hostiles . | . . . . . . . . . . . Follow-up Attacks . | . . . . . . . . . . . Damage Inflicted 17627 | . . 270 . 10 2764 2591 387 528 . 11077 Guns 10013 | . . 270 . . 2764 2454 387 182 . 3956 Cannons . | . . . . . . . . . . . Explosions 4938 | . . . . . . 103 . 346 . 4489 Melee 2632 | . . . . . . . . . . 2632 Ramming 44 | . . . . 10 . 34 . . . . Kinetic 8772 | . . 127 . . 2363 2454 387 182 . 3259 Thermal 630 | . . 143 . . 326 103 . . . 58 Explosive 4654 | . . . . . . . . 346 . 4308 Electromagnetic 895 | . . . . . 75 . . . . 820 Impact 2632 | . . . . . . . . . . 2632 Slashing . | . . . . . . . . . . . Piercing . | . . . . . . . . . . . Highest Corruption 3 | . . . . . . . 1 1 1 3 Average Corruption 1 | . . . . . . . 1 1 1 3 Corruption Purged . | . . . . . . . . . . . Effects 21 | . . . . . . . 4 7 2 8 Message Errors 10 | . . . . . . . 2 5 . 3 Heat Flow Errors 1 | . . . . . . . . . . 1 Energy Discharges 6 | . . . . . . . 2 1 2 1 Data Loss (minor) 3 | . . . . . . . . 1 . 2 Weapon Failures 1 | . . . . . . . . . . 1 Overload Shots . | . . . . . . . . . . . Overflow Damage 431 | . . . . . . 37 . . . 394 Projectiles . | . . . . . . . . . . . Explosions 278 | . . . . . . 37 . . . 241 Melee 153 | . . . . . . . . . . 153 Knockbacks 10 | . . . . . . . . . . 10 Impact 8 | . . . . . . . . . . 8 Kinetic . | . . . . . . . . . . . Secondary 2 | . . . . . . . . . . 2 Self-Inflicted Damage 241 | . . . . . . 154 . . . 87 Shots 4 | . . . . . . 2 . . . 2 Rammed 5 | . . . . 1 . 4 . . . . Targets Rammed 5 | . . . . 1 . 4 . . . . Kicked . | . . . . . . . . . . . Crushed . | . . . . . . . . . . . Highest Temperature 398 | . . 63 . . 253 398 250 180 . 222 Average Temperature 95 | . . 42 . . 74 135 105 74 . 68 Received Heat Transfer 1409 | . . 63 . . 279 372 . 45 . 650 Effects 7 | . . . . . 2 5 . . . . Shutdowns 1 | . . . . . . 1 . . . . Interference 4 | . . . . . 2 2 . . . . Matter Decay 1 | . . . . . . 1 . . . . Damage (minor) 1 | . . . . . . 1 . . . . Siege Activations . | . . . . . . . . . . . Robots Corrupted 4 | . . . . . . . . . . 4 Combat Hostiles 4 | . . . . . . . . . . 4 Parts Fried 3 | . . . . . . . . . . 3 Impact Corruptions 6 | . . . . . . . . . . 6 Robots Melted . | . . . . . . . . . . . Combat Hostiles . | . . . . . . . . . . . Parts Melted 4 | . . 1 . . 3 . . . . . Heat Transferred 1178 | . . 325 . . 703 100 . . . 50 Parts Sabotaged . | . . . . . . . . . . . Parts Stolen . | . . . . . . . . . . . Parts Stripped . | . . . . . . . . . . . Power Chain Reactions 1 | . . . . . . . . . . 1 Missiles Intercepted . | . . . . . . . . . . . Alert | -11 -10 -10 -10 -9 -8 -7 -7 -7 -7 -7 ------- Run | Scr Mat Min Exi Min Mat Fac Low Low Zio Dee Peak Influence 489 | . . 279 . . 489 366 . . . . Initial 193 | . . . . . . 193 . . . . Average 219 | . . 90 . . 334 192 . . . . Maximum Alert Level 2 | . . 1 . . 2 1 . . . . Low Security (%) 43 | 100 100 80 . 100 15 47 . . . . Level 1 41 | . . 19 . . 40 52 . . . . Level 2 15 | . . . . . 43 . . . . . Level 3 . | . . . . . . . . . . . Level 4 . | . . . . . . . . . . . Level 5 . | . . . . . . . . . . . High Security . | . . . . . . . . . . . Max Security . | . . . . . . . . . . . Squads Dispatched 9 | . 1 . . . 5 3 . . . . Investigation . | . . . . . . . . . . . Extermination 3 | . . . . . . 3 . . . . Reinforcement 2 | . 1 . . . 1 . . . . . Assault . | . . . . . . . . . . . Garrison 4 | . . . . . 4 . . . . . Intercept . | . . . . . . . . . . . Construction Impeded . | . . . . . . . . . . . Haulers Reinforced . | . . . . . . . . . . . Active Scanning Responses . | . . . . . . . . . . . Cargo Convoy Interrupts . | . . . . . . . . . . . Stealth | -11 -10 -10 -10 -9 -8 -7 -7 -7 -7 -7 --------- Run | Scr Mat Min Exi Min Mat Fac Low Low Zio Dee Distress Signals 4 | . . 1 . . 3 . . . . . Communications Jammed . | . . . . . . . . . . . Distress Signals . | . . . . . . . . . . . Times Spotted 191 | . 1 17 . . 46 33 8 6 . 80 Peak Tracking Total 35 | . . 6 . . 5 5 3 4 . 35 Tactical Retreats 16 | . . 1 . . 2 . . . . 13 Traps | -11 -10 -10 -10 -9 -8 -7 -7 -7 -7 -7 ------- Run | Scr Mat Min Exi Min Mat Fac Low Low Zio Dee Traps Triggered 6 | . . . . . 3 3 . . . . Indirectly . | . . . . . . . . . . . Trap Hack Attempts . | . . . . . . . . . . . Triggered . | . . . . . . . . . . . Disarmed . | . . . . . . . . . . . Reprogrammed . | . . . . . . . . . . . Reused . | . . . . . . . . . . . Traps Extracted . | . . . . . . . . . . . Installed . | . . . . . . . . . . . Triggered . | . . . . . . . . . . . Machines | -11 -10 -10 -10 -9 -8 -7 -7 -7 -7 -7 ---------- Run | Scr Mat Min Exi Min Mat Fac Low Low Zio Dee Machines Disabled 13 | . . . . . 1 7 . . 2 3 Max in Single Turn 6 | . . . . . 1 6 . . 1 1 Garrison Access 2 | . . . . . . 2 . . . . Machines Sabotaged . | . . . . . . . . . . . Garrisons Compromised . | . . . . . . . . . . . Overloaded Fab Kills . | . . . . . . . . . . . Hacking | -11 -10 -10 -10 -9 -8 -7 -7 -7 -7 -7 --------- Run | Scr Mat Min Exi Min Mat Fac Low Low Zio Dee Machines Accessed 25 | . . . 2 . 13 10 . . . . Terminals 13 | . . . . . 10 3 . . . . Fabricators 3 | . . . . . . 3 . . . . Repair Stations 1 | . . . . . . 1 . . . . Recycling Units 2 | . . . . . 1 1 . . . . Scanalyzers 1 | . . . . . 1 . . . . . Garrison Access 3 | . . . . . 1 2 . . . . Total Hacks 67 | . . . 2 . 41 24 . . . . Successful 42 | . . . 2 . 29 11 . . . . Failed 24 | . . . . . 11 13 . . . . Catastrophic . | . . . . . . . . . . . Database Lockouts 1 | . . . . . 1 . . . . . Manual 46 | . . . 1 . 29 16 . . . . Terminals 46 | . . . . . 36 10 . . . . Fabricators 6 | . . . . . . 6 . . . . Repair Stations 2 | . . . . . . 2 . . . . Recycling Units 4 | . . . . . 2 2 . . . . Scanalyzers 2 | . . . . . 2 . . . . . Garrison Access 5 | . . . . . 1 4 . . . . Terminal Hacks 15 | . . . 2 . 13 . . . . . Record 1 | . . . 1 . . . . . . . Part Schematic 1 | . . . . . 1 . . . . . Robot Analysis 2 | . . . . . 2 . . . . . Branch Access Points 1 | . . . . . 1 . . . . . Terminal Index 1 | . . . . . 1 . . . . . Locate Traps 2 | . . . . . 2 . . . . . Maintenance Status 1 | . . . . . 1 . . . . . Security Status 1 | . . . . . 1 . . . . . Surveillance Status 1 | . . . . . 1 . . . . . Registered Components 2 | . . . . . 2 . . . . . Registered Prototypes 1 | . . . . . 1 . . . . . EX-Prototype ID Bank 1 | . . . 1 . . . . . . . Fabricator Hacks 1 | . . . . . . 1 . . . . Build 1 | . . . . . . 1 . . . . Repair Station Hacks 2 | . . . . . . 2 . . . . Scan Component 1 | . . . . . . 1 . . . . Repair 1 | . . . . . . 1 . . . . Recycling Unit Hacks 1 | . . . . . 1 . . . . . Retrieve Components 1 | . . . . . 1 . . . . . Scanalyzer 2 | . . . . . 2 . . . . . Insert Component 1 | . . . . . 1 . . . . . Analyze 1 | . . . . . 1 . . . . . Garrison Access Hacks 3 | . . . . . 1 2 . . . . Unlock Access 1 | . . . . . 1 . . . . . Seal Access 2 | . . . . . . 2 . . . . Unauthorized Hacks 18 | . . . . . 12 6 . . . . Terminals 14 | . . . . . 11 3 . . . . Track 4 | . . . . . 4 . . . . . Assimilate 2 | . . . . . 1 1 . . . . Botnet 7 | . . . . . 5 2 . . . . Operators 1 | . . . . . 1 . . . . . Fabricators 2 | . . . . . . 2 . . . . Fabnet 2 | . . . . . . 2 . . . . Repair Stations . | . . . . . . . . . . . Recycling Units 2 | . . . . . 1 1 . . . . Recyclers 2 | . . . . . 1 1 . . . . Scanalyzers . | . . . . . . . . . . . Garrison Access . | . . . . . . . . . . . Data Cores Recovered . | . . . . . . . . . . . Used . | . . . . . . . . . . . Hacking Detections 20 | . . . . . 11 9 . . . . Full Trace Events . | . . . . . . . . . . . Feedback Events . | . . . . . . . . . . . Feedback Blocked . | . . . . . . . . . . . Robot Schematics Acquired 4 | . . . . . . . . . 4 . Robots Built 2 | . . . . . . 2 . . . . Authchips . | . . . . . . . . . . . Time 67 | . . . . . . 67 . . . . Total Robot Build Rating 8 | . . . . . . 8 . . . . Part Schematics Acquired 17 | . . . . . 2 . . . 15 . Parts Built . | . . . . . . . . . . . Authchips . | . . . . . . . . . . . Time . | . . . . . . . . . . . Total Part Build Rating . | . . . . . . . . . . . Parts Repaired 1 | . . . . . . 1 . . . . Time 12 | . . . . . . 12 . . . . Parts Recycled . | . . . . . . . . . . . Recycled Matter . | . . . . . . . . . . . Retrieved Matter . | . . . . . . . . . . . Retrieved Components 10 | . . . . . 10 . . . . . Parts Scanalyzed 1 | . . . . . 1 . . . . . Part Schematics Acquired 1 | . . . . . 1 . . . . . Parts Damaged . | . . . . . . . . . . . Bothacking | -11 -10 -10 -10 -9 -8 -7 -7 -7 -7 -7 ------------ Run | Scr Mat Min Exi Min Mat Fac Low Low Zio Dee Used RIF Installer . | . . . . . . . . . . . Robots Hacked . | . . . . . . . . . . . Non-combat . | . . . . . . . . . . . Combat . | . . . . . . . . . . . Robot Hacks Applied . | . . . . . . . . . . . Relay Couplers Released . | . . . . . . . . . . . Fabnet Peak Effective % . | . . . . . . . . . . . Robots Rewired . | . . . . . . . . . . . Allies Hacked 3 | . . . . . . . 3 . . . Hacks Repelled . | . . . . . . . . . . . Allies | -11 -10 -10 -10 -9 -8 -7 -7 -7 -7 -7 -------- Run | Scr Mat Min Exi Min Mat Fac Low Low Zio Dee Total Allies 16 | . . 6 . . 1 3 3 . 3 . Largest Group 6 | . . 6 5 3 3 2 3 2 4 4 Highest-Rated Group 114 | . . 114 83 40 40 74 86 22 92 92 Highest-Rated Ally 37 | . . 31 31 16 16 37 37 12 31 31 Total Orders 20 | . . . . . 16 3 . . . 1 STAY 9 | . . . . . 7 1 . . . 1 FOLLOW 7 | . . . . . 6 1 . . . . EXPLORE 4 | . . . . . 3 1 . . . . Ally Attacks 123 | . . 18 . . 42 2 21 15 . 25 Total Damage 1515 | . . 217 . . 498 32 281 130 . 357 Kills 13 | . . 4 . . 2 1 2 1 . 3 Allies Corrupted . | . . . . . . . . . . . Allies Melted . | . . . . . . . . . . . Intel | -11 -10 -10 -10 -9 -8 -7 -7 -7 -7 -7 ------- Run | Scr Mat Min Exi Min Mat Fac Low Low Zio Dee Robot Analysis Total 2 | . . . . . 2 . . . . . Derelict Logs Recovered 3 | . . 1 . . . . . 1 1 . Drone Launches 5 | . . . . . 4 1 . . . . Drone Recoveries 5 | . . . . . 4 1 . . . . Exploration | -11 -10 -10 -10 -9 -8 -7 -7 -7 -7 -7 ------------- Run | Scr Mat Min Exi Min Mat Fac Low Low Zio Dee Turns Passed 16811 | 65 70 1421 923 212 3290 4482 732 755 2098 2763 Spaces Moved 7088 | 44 42 847 576 129 1412 1570 294 309 949 916 Core 148 | 15 . . . . 1 . . . 132 . Treads 6481 | 29 42 847 576 129 1058 1570 294 309 817 810 Legs . | . . . . . . . . . . . Wheels 459 | . . . . . 353 . . . . 106 Hover . | . . . . . . . . . . . Flight . | . . . . . . . . . . . Fastest Speed 50 | 50 160 160 160 160 120 170 238 238 50 145 Average Speed 208 | 127 160 160 160 160 196 242 238 238 212 233 Slowest Speed 1400 | 160 160 160 160 160 550 250 238 238 1400 247 Overloaded Moves . | . . . . . . . . . . . Propulsion Burnouts . | . . . . . . . . . . . Robots Hopped . | . . . . . . . . . . . Cave-ins Triggered 1 | . . 1 . . . . . . . . Exploration Rate (%) 59 | 4 11 98 91 41 93 48 49 56 86 79 Regions Visited 10 Branch Regions 7 Pre-discovered Areas 2 | . . 1 1 . . . . . . . Known Exits Taken 1 | . . . . . . 1 . . . . Unknown Exits Taken 9 | 1 1 1 1 1 1 . 1 1 1 . Scrap Searched 8 | . . 1 . 1 . . 2 2 2 . Spaces Dug 8 | . . . . . 4 2 . . 2 . Terrain Destroyed 189 | . . . . . 25 22 . 26 2 114 Melee 8 | . . . . . 4 2 . . 2 . Projectile 5 | . . . . . . 1 . . . 4 AOE 176 | . . . . . 21 19 . 26 . 110 Terrain Rammed . | . . . . . . . . . . . Walls Destroyed . | . . . . . . . . . . . Machines Disabled . | . . . . . . . . . . . Actions | -11 -10 -10 -10 -9 -8 -7 -7 -7 -7 -7 --------- Run | Scr Mat Min Exi Min Mat Fac Low Low Zio Dee Total 8516 | 50 44 877 578 134 1786 2191 317 322 1026 1191 Wait 698 | . . 7 2 4 179 464 11 1 11 19 Move 7077 | 43 41 845 575 128 1411 1569 293 308 948 916 Hop . | . . . . . . . . . . . Pick Up 105 | . 2 4 1 1 28 28 . 1 29 11 Fast Attach 43 | 6 1 1 . . 17 7 . 1 6 4 Attach 38 | . . . . . 9 7 . . 7 15 Detach 6 | . . . . . . 4 . 1 . 1 Swap 42 | 1 . . . . 15 10 . 1 2 13 Drop 81 | . . 1 . . 26 25 . . 15 14 Fire 333 | . . 18 . . 96 67 13 9 . 130 Melee 83 | . . . . . 5 2 . . 8 68 Ram . | . . . . . . . . . . . Kick . | . . . . . . . . . . . Crush 5 | . . . . 1 . 4 . . . . Escape Stasis 5 | . . 1 . . . 4 . . . . Rewire . | . . . . . . . . . . . Trap . | . . . . . . . . . . . Miscellaneous . | . . . . . . . . . . . Route ------- -11/Scrapyard -10/Materials -10/Mines (discovered 3 exits: [*Mat x2] / *Exi) -10/Exiles -9/Mines -8/Materials (discovered 3 exits: *Fac x2 / Gar) -7/Factory (discovered 2 exits: [*Fac] / *Low) -7/Lower Caves -7/Lower Caves -7/Zion (discovered 2 exits: [*Dee] / [*Pro]) -7/Deep Caves (discovered 1 exit: [*Pro]) History --------- Turn | Location | Event 7 | -11/Scrapyard | Discovered new exit (range 15) 66 | -11/Scrapyard | Entered Materials 82 | -10/Materials | Discovered new exit (range 15) 136 | -10/Materials | Entered Mines 137 | -10/Mines | Assembled infested the area 153 | -10/Mines | Met 8R-AWN 193 | -10/Mines | Crushed by falling debris 212 | -10/Mines | Discovered new exit (range 8) 255 | -10/Mines | Learned location of Zion (-7) 309 | -10/Mines | Build established: Mutant 331 | -10/Mines | Discovered new exit (range 5) 390 | -10/Mines | Discovered new exit (range 5) 517 | -10/Mines | Assisted by bots powering up and referring to "LRC-V3" 989 | -10/Mines | Found a damaged Exp. Sensor Array with a note attached 992 | -10/Mines | Found Prototype Device 1158 | -10/Mines | Received a Mining Laser from a helpful Derelict 1264 | -10/Mines | A weapon hastily lodged in a ceiling crevice suddenly fell to the ground 1557 | -10/Mines | Entered Exiles 1557 | -10/Exiles | Accompanied by 5 allies 1587 | -10/Exiles | Led the pair of lost Derelicts to a safe place 1601 | -10/Exiles | Welcomed by 8R-AWN 1623 | -10/Exiles | Met EX-HEX 1668 | -10/Exiles | Met EX-BIN 1706 | -10/Exiles | Met EX-DEC 1986 | -10/Exiles | Visited The Gauntlet 2274 | -10/Exiles | Aligned with FarCom system 2276 | -10/Exiles | Given EX-Vault access code 2318 | -10/Exiles | Opened EX-Vault 2329 | -10/Exiles | Found Supersonic Drone Bay 2362 | -10/Exiles | Warned to stay clear of 0b10 Research branches 2468 | -10/Exiles | Discovered new exit (range 10) 2480 | -10/Exiles | Left Exiles lab with Supersonic Drone Bay 2480 | -10/Exiles | Entered Mines 2480 | -9/Mines | Accompanied by 3 allies 2534 | -9/Mines | Received a Rocket Launcher from a helpful Derelict 2659 | -9/Mines | Discovered new exit (range 11) 2692 | -9/Mines | Entered Materials 2692 | -8/Materials | Accompanied by 3 allies 2692 | -8/Materials | Evolved 4 slots: Propulsion x1, Utility x2, Weapon x1 2942 | -8/Materials | Garrison activated, responded to threat 2981 | -8/Materials | Build established: Skirmisher 3010 | -8/Materials | Identified exit to Garrison 3262 | -8/Materials | Garrison activated, responded to threat 3616 | -8/Materials | Discovered new exit (range 15) 3893 | -8/Materials | Build established: Hacker-Skirmisher 4350 | -8/Materials | Central database locked down 4806 | -8/Materials | Build established: Gunner 4888 | -8/Materials | Discovered new exit (range 8) 5681 | -8/Materials | Build established: Mutant 5982 | -8/Materials | Entered Factory 5982 | -7/Factory | Evolved 2 slots: Propulsion x1, Utility x1 6045 | -7/Factory | Discovered new exit (range 92) 6438 | -7/Factory | Build established: Gunner 7086 | -7/Factory | Build established: Mutant 7398 | -7/Factory | Build established: Gunner 8129 | -7/Factory | Repaired Arm. Treads 9290 | -7/Factory | Fabricated P-60 Hacker (x2) 10454 | -7/Factory | Discovered new exit (range 3) 10462 | -7/Factory | Identified exit to Lower Caves 10464 | -7/Factory | Entered Lower Caves 10464 | -7/Lower Caves | Accompanied by 2 allies 10465 | -7/Lower Caves | Hacker 4a assimilated hostile S-27 Virus 10504 | -7/Lower Caves | Hacker 4a assimilated hostile S-27 Virus 10505 | -7/Lower Caves | Hacker 4a assimilated hostile S-27 Virus 10978 | -7/Lower Caves | Encountered a Warlord checkpoint 11181 | -7/Lower Caves | Discovered new exit (range 5) 11196 | -7/Lower Caves | Entered another Lower Caves area 11196 | -7/Lower Caves | Accompanied by 3 allies 11569 | -7/Lower Caves | Learned Factory terminal intel 11922 | -7/Lower Caves | Discovered new exit (range 11) 11951 | -7/Lower Caves | Entered Zion 11951 | -7/Zion | Accompanied by 1 ally 12091 | -7/Zion | Build established: Mutant 12167 | -7/Zion | Gained Derelict followers 12184 | -7/Zion | Discovered new exit (range 14) 12377 | -7/Zion | System corruption cleaned by Quarantine Array 12503 | -7/Zion | Learned Factory security intel 12781 | -7/Zion | Rebuked by Imprinter 13068 | -7/Zion | Found Relay Coupler [Programmer] 13079 | -7/Zion | Found Relay Coupler [Programmer] 13082 | -7/Zion | Found Relay Coupler [Programmer] 13533 | -7/Zion | Found Prototype Device 13882 | -7/Zion | Identified Phasing AFG 14031 | -7/Zion | Discovered new exit (range 5) 14033 | -7/Zion | Saw the warning signs outside the Deep Caves entrance 14049 | -7/Zion | Entered Deep Caves 14049 | -7/Deep Caves | Accompanied by 4 allies 14196 | -7/Deep Caves | Build established: Gunner 14505 | -7/Deep Caves | Attacked by Z-Imprinter 14525 | -7/Deep Caves | Destroyed Z-Imprinter 14571 | -7/Deep Caves | Found Prototype Protection 14571 | -7/Deep Caves | Identified Zio. Weapon Casing 14729 | -7/Deep Caves | Z-Facility disabled 14890 | -7/Deep Caves | Found Prototype Protection 14948 | -7/Deep Caves | Found Prototype Protection 15099 | -7/Deep Caves | Found Zio. Weapon Casing 15130 | -7/Deep Caves | Found Zio. Weapon Casing 15920 | -7/Deep Caves | Discovered new exit (range 6) 16102 | -7/Deep Caves | Spotted as-09153 16121 | -7/Deep Caves | Core integrity fell below 50% 16128 | -7/Deep Caves | Destroyed as-09153 16147 | -7/Deep Caves | Found Superbattery 16154 | -7/Deep Caves | Lost 5 parts (1n1u3w) 16247 | -7/Deep Caves | Triggered Deep Caves wall 16250 | -7/Deep Caves | Exposed GOLEM chamber 16287 | -7/Deep Caves | Destroyed AS-61654 16301 | -7/Deep Caves | Lost 5 parts (2n3w) 16310 | -7/Deep Caves | Spotted AS-11273 16324 | -7/Deep Caves | Destroyed 39 combat bots 16419 | -7/Deep Caves | Build established: Mutant 16812 | -7/Deep Caves | Self-destructed Last Messages --------------- 16685_ System corrupted: Component data lost. 16686_ as-76530 destroyed. 16691_ Acquired 95 matter. 16692_ Acquired 112 matter. 16694_ Slug penetrates as-50791. 16706_ ZQ-QOO(b) destroyed. 16709_ Slug penetrates as-30251. 16721_ Slug penetrates Wall. 16724_ Slug penetrates as-30251. 16727_ Slug penetrates Wall. 16727_ Slug penetrates as-30251. 16730_ TD-0KY(l) destroyed. 16733_ Slug penetrates as-08640. 16736_ Slug penetrates Wall. 16739_ Slug penetrates as-08640. 16746_ as-08640 suffers critical hit (Destroy). 16746_ Destroyed Prototype Reactor. 16762_ Acquired 44 matter. 16780_ Slug penetrates as-00319. 16804_ Slug penetrates as-85998. Map ----- +----------------------------------------------------+ | #???????# ##?###### #???????????# | | #?##????# ##### ##?????## #???????????# | | #? #????# ##???# ##?????# #??????###### | | #? #????# ###### #?????# ##?????## | | #? #????# ## #????## ##????### | | ## #????# ## #???## ####### | | # ###### # ##??## ## | | ## # ##???# ### | | #### ########????# ########## ### | | ##??## ##?????????## #????????# ### | | ##????### ##?????????## ##??????## ## | | #??????## #??????????## #???????##### | | ####??????# #???????????## #######????## | | ## #??????# #????????????## #???## | | ## ####??## ##????????????## #???# | | #### #?????????????######## #???# | | ##### ##???????????????????# #???# | | ### G ##??????????????????# #???# | | # #####?????????###### #???# | | ### #######??## ##??# | | ### ## #### ##?## | | ## ##### | | / ### a ## | | *%/* ### a ###### | | ## a a ##???### | | ## @ #?????## | | * ### #?????## | | #?## ##???### | | * ##?## ##???## ## | | * #??# ## ##???# #### | | #?## #### #???# ##??# | | #?# ######?## ##???## ##???## | | %= ### ##??????# ##????### ###?????# | | ##??????# ###?????# #??????? | | ##?????# ##????# #??????? | | * ##????# #?????#< # ###??????? | | % ## ###### ##????########????????? | | ## ## #????????????????????? | | ### #????????????????????? | | # # #?## ##????????????????????? | | ## ## ##??## ###?????????????????????? | | ?# ?###????#### ##???????????????????????? | | ??# ???????????##########????????????????????????? | | ???#?????????????????????????????????????????????? | | | | | | | | | | | | | +----------------------------------------------------+ Best States ------------- Heat Dissipation 74 Energy Generation 16 Energy Capacity 290 Matter Stores 300 Matter Capacity 300 Sight Range 16 Terrain Scan Density 10 ECM Strength 1 Armor Coverage 400 Resistance: KI 20 Weapon Cycling 15 Evasion (%) 50 Targeting Accuracy 8 Launcher Accuracy 20 Recoil Reduction 4 Offensive Hacking 30 Item Schematics ----------------- Huge Storage Unit | -8/Materials | Hacked Enh. Autogun | -8/Materials | Scanalyzed Fusion Compressor | -7/Zion | Archive Gravmag System | -7/Zion | Archive Plasma Cannon | -7/Zion | Archive EM Shield | -7/Zion | Archive Arm. Huge Wheel | -7/Zion | Archive Adv. Signal Interpreter | -7/Zion | Archive Remote Datajack | -7/Zion | Archive Enh. Gauss Cannon | -7/Zion | Archive Adv. Trap Extractor | -7/Zion | Archive Imp. Carbon-fiber Leg | -7/Zion | Archive Force Field | -7/Zion | Archive Coil Gun | -7/Zion | Archive Mak. Salvage Targeting Computer | -7/Zion | Archive Arc Projector | -7/Zion | Archive Force Rifle | -7/Zion | Archive Robot Schematics ------------------ S-27 Virus | -7/Zion | Archive L-31 Rogue | -7/Zion | Archive A-02 Transporter | -7/Zion | Archive C-57 Dissector | -7/Zion | Archive Fabricated ------------ P-60 Hacker | x2 | -7/Factory | Preloaded Alien Tech Used ----------------- None Achievements -------------- None Challenges ------------ None Game ------ Seed FocalUltimateRifle Manual? 0 Play Time 01:09:28 Cumulative 134.2 hours Start 2021.12.14 @ 18:46:55 End 2021.12.15 @ 04:31:17 Sessions 2 Manual Loads 0 Difficulty Rogue Special Mode None Game No. 227 Rogue 210 Adventurer 4 Explorer 13 Win Type - Total 8 Types 6/0/0/2/0/0/0/0/0 Lore% 63 Gallery% 82 Achievement% 68 Wizard Run 0 Options --------- ASCII 0 Keyboard 1 Movement Numpad Keybinds 0 Fullscreen 1 Font 18/SmallcapsGlow Map View 76x50 Tactical HUD 1 Map Filters NONE Filters NONE Steam 1 RUN: be4f4346-4f0d-4796-b284-6624035ccd81